{"text_format":"3","workbook":"xlsx","n_sheets":2,"sheets":["Faktura rozliczeniowa","Konfiguracja firmy"],"not_rendered":{"images":1,"defined_names":27},"read":"whole","date_system":"1900"}

{"sheet":"Faktura rozliczeniowa","index":0,"n_rows":35,"n_cols":7,"rows_kept":35,"merged":[[1,3,2,4],[3,3,3,4],[4,3,4,4],[5,3,5,4],[23,1,23,3],[24,1,24,3],[25,1,25,3],[26,1,26,3]]}
[null,"FAKTURA","0005"]
[null,{"$f":"TODAY()","v":"2022-04-05"},null,{"$f":"Łączna_kwota_faktury","v":79.65},null," ","Konfiguracja firmy"]
[null,"TERMIN PŁATNOŚCI:",{"$f":"TODAY()+15","v":"2022-04-20"},null,null," "]
[null,"JOANNA KRAWCZYK",null,"ADVENTURE WORKS"]
[null,"Fabrikam",null,"ul. Wiśniowa 23"]
[null,"ul. Modra 12",null,"12-345 Warszawa"]
[null,"73-456 Warszawa"]
[null,"ILOŚĆ","SZCZEGÓŁY","CENA JEDNOSTKOWA","WIERSZ SUMY"]
[null,2,"Widżety",14.95,{"$f":"IFERROR(InvoiceDetails[[#This Row],[CENA JEDNOSTKOWA]]*InvoiceDetails[[#This Row],[ILOŚĆ]],\"\")","v":{"v":29.9,"d":"29.90"}}]
[null,5,"Zmywarki",9.95,{"$f":"IFERROR(InvoiceDetails[[#This Row],[CENA JEDNOSTKOWA]]*InvoiceDetails[[#This Row],[ILOŚĆ]],\"\")","v":49.75}]
[{"$nulls":4},{"$f":"IFERROR(InvoiceDetails[[#This Row],[CENA JEDNOSTKOWA]]*InvoiceDetails[[#This Row],[ILOŚĆ]],\"\")","v":0}]
[{"$nulls":4},{"$f":"IFERROR(InvoiceDetails[[#This Row],[CENA JEDNOSTKOWA]]*InvoiceDetails[[#This Row],[ILOŚĆ]],\"\")","v":0}]
[{"$nulls":4},{"$f":"IFERROR(InvoiceDetails[[#This Row],[CENA JEDNOSTKOWA]]*InvoiceDetails[[#This Row],[ILOŚĆ]],\"\")","v":0}]
[{"$nulls":4},{"$f":"IFERROR(InvoiceDetails[[#This Row],[CENA JEDNOSTKOWA]]*InvoiceDetails[[#This Row],[ILOŚĆ]],\"\")","v":0}]
[{"$nulls":4},{"$f":"IFERROR(InvoiceDetails[[#This Row],[CENA JEDNOSTKOWA]]*InvoiceDetails[[#This Row],[ILOŚĆ]],\"\")","v":0}]
[{"$nulls":4},{"$f":"IFERROR(InvoiceDetails[[#This Row],[CENA JEDNOSTKOWA]]*InvoiceDetails[[#This Row],[ILOŚĆ]],\"\")","v":0}]
[{"$nulls":4},{"$f":"IFERROR(InvoiceDetails[[#This Row],[CENA JEDNOSTKOWA]]*InvoiceDetails[[#This Row],[ILOŚĆ]],\"\")","v":0}]
[{"$nulls":4},{"$f":"IFERROR(InvoiceDetails[[#This Row],[CENA JEDNOSTKOWA]]*InvoiceDetails[[#This Row],[ILOŚĆ]],\"\")","v":0}]
[{"$nulls":4},{"$f":"IFERROR(InvoiceDetails[[#This Row],[CENA JEDNOSTKOWA]]*InvoiceDetails[[#This Row],[ILOŚĆ]],\"\")","v":0}]
[{"$nulls":4},{"$f":"IFERROR(InvoiceDetails[[#This Row],[CENA JEDNOSTKOWA]]*InvoiceDetails[[#This Row],[ILOŚĆ]],\"\")","v":0}]
[{"$nulls":4},{"$f":"IFERROR(InvoiceDetails[[#This Row],[CENA JEDNOSTKOWA]]*InvoiceDetails[[#This Row],[ILOŚĆ]],\"\")","v":0}]
[{"$nulls":4},{"$f":"IFERROR(InvoiceDetails[[#This Row],[CENA JEDNOSTKOWA]]*InvoiceDetails[[#This Row],[ILOŚĆ]],\"\")","v":0}]
[{"$nulls":4},{"$f":"IFERROR(InvoiceDetails[[#This Row],[CENA JEDNOSTKOWA]]*InvoiceDetails[[#This Row],[ILOŚĆ]],\"\")","v":0}]
[null,"Rabat"]
[null,"Łączna kwota netto",null,null,{"$f":"SUM(InvoiceDetails[WIERSZ SUMY])-E24","v":{"v":79.65,"d":"79.65 zł"}}]
[null,"Podatek"]
[null,{"$f":"REPT(Konfiguracja_firmy_Skrót_Twojej_waluty,LEN(Konfiguracja_firmy_Skrót_Twojej_waluty)>0) & \" SUMA\"","v":"PLN SUMA"},null,null,{"$f":"IFERROR(E25+E26, \"\")","v":{"v":79.65,"d":"79.65 zł"}}]
[null,"SZCZEGÓŁY PŁATNOŚCI",null,null,"INNE INFORMACJE"]
[null,"Nazwa beneficjenta:",{"$f":" Konfiguracja_firmy_Nazwa_beneficjenta_przelewu","v":"Adventure Works"},null,{"$f":"IFERROR(Konfiguracja_firmy_Twoje_imię_i_nazwisko,\"\")","v":""}]
[null,"Nazwa banku:",{"$f":"Konfiguracja_firmy_Nazwa_banku","v":"Bank Podlasie"},null,{"$f":"IFERROR(\"Telefon: \" & Konfiguracja_firmy_Twój_numer_telefonu,\"\")","v":"Telefon: (022) 123-45-67"}]
[null,"Adres banku:",{"$f":"Konfiguracja_firmy_Adres_banku","v":"ul. Główna 34, 12-345 Warszawa"},null,{"$f":"IFERROR(\"Faks: \" & Konfiguracja_firmy_Twój_numer_faksu,\"\")","v":"Faks: (022) 123-45-68"}]
[null,"Numer konta:",{"$f":"Konfiguracja_firmy_Konto_bankowe","v":1234567},null,{"$f":"IFERROR(Konfiguracja_firmy_Twój_adres_URL,\"\")","v":"Adventure-Works.com"}]
[null,"Numer rozliczeniowy (Kod SWIFT)",{"$f":"Konfiguracja_firmy_Numer_rozliczeniowy_banku","v":9876543210},null,{"$f":"IFERROR(Konfiguracja_firmy_Twój_adres_emai,\"\")","v":"Accounting@Adventure-Works.com"}]
[null,"Identyfikator płatności:",{"$f":"Numer_wyświetlany_faktury","v":"0005"},null,{"$f":"IFERROR(IF(LEN(Client_PO),\"Kontrakt/Zamówienie: \" & Client_PO,\"\"),\"\")","v":""}]
[null,{"$f":"UPPER(\"Płatność powinna zostać dokonana przelewem bankowym lub czekiem wystawionym na \" &Konfiguracja_firmy_Odbiorca_czeku & \".\")","v":"PŁATNOŚĆ POWINNA ZOSTAĆ DOKONANA PRZELEWEM BANKOWYM LUB CZEKIEM WYSTAWIONYM NA ADVENTURE WORKS."}]

{"sheet":"Konfiguracja firmy","index":1,"n_rows":20,"n_cols":5,"rows_kept":20}
[null,"KONFIGURACJA FIRMY"]
[null,"DANE FAKTUROWANIA FIRMY","WARTOŚĆ",null,"Faktura rozliczeniowa"]
[null,"Nazwa","Artur Wieczorek"]
[null,"Nazwa firmy","ADVENTURE WORKS"]
[null,"Wiersz adresu 1","ul. Wiśniowa 23"]
[null,"Wiersz adresu 2","12-345 Warszawa"]
[null,"Wiersz adresu 3"]
[null,"Wiersz adresu 4"]
[null,"Wiersz adresu 5"]
[null,"Telefon","(022) 123-45-67"]
[null,"Faks","(022) 123-45-68"]
[null,"Witryna internetowa","Adventure-Works.com"]
[null,"Adres e-mail","Accounting@Adventure-Works.com"]
[null,"Skrót waluty","PLN"]
[null,"Nazwa beneficjenta przelewu bankowego","Adventure Works"]
[null,"Nazwa banku","Bank Podlasie"]
[null,"Adres banku","ul. Główna 34, 12-345 Warszawa"]
[null,"Numer konta",1234567]
[null,"Numer rozliczeniowy (Kod SWIFT)",9876543210]
[null,"Przelewy należy wystawić na firmę:","Adventure Works"]